fUST/lending_fUST_20250614
["ID","MTS","AMOUNT","RATE_DAILY","PERIOD"]
[365743059,1749865838942,-927.897222,0.00022356,2]
[365743060,1749865838951,-317.6798574,0.00022356,2]
[365743061,1749865838961,-1147.3495832,0.00022356,2]
[365743062,1749865838971,-306.0,0.00022356,2]
[365743063,1749865838980,-192.0,0.00022387,2]
[365743064,1749865838989,-1589.35444136,0.00022417,7]
[365743065,1749865838999,-500.0,0.00022466,2]
[365743066,1749865839009,-500.0,0.00022466,2]
[365743067,1749865839022,-500.0,0.00022466,2]
[365743068,1749865839031,-500.0,0.00022466,2]
[365743069,1749865839040,-500.0,0.00022466,2]
[365743070,1749865839050,-500.0,0.00022466,2]
[365743071,1749865839060,-500.0,0.00022466,2]
[365743072,1749865839070,-500.0,0.00022466,2]
[365743073,1749865839080,-500.0,0.00022466,2]
[365743074,1749865839089,-500.0,0.00022466,2]
[365743075,1749865839100,-500.0,0.00022466,2]
[365743076,1749865839110,-500.0,0.00022466,2]
[365743077,1749865839119,-500.0,0.00022466,2]
[365743078,1749865839129,-500.0,0.00022466,2]
[365743079,1749865839138,-500.0,0.00022466,2]
[365743080,1749865839147,-500.0,0.00022466,2]
[365743081,1749865839157,-500.0,0.00022466,2]
[365743082,1749865839166,-500.0,0.00022466,2]
[365743083,1749865839175,-500.0,0.00022466,2]
[365743084,1749865839185,-500.0,0.00022466,2]
[365743085,1749865839195,-253.86696612,0.00022466,2]
[365743086,1749865839204,-500.0,0.00022466,2]
[365743087,1749865839214,-500.0,0.00022466,2]
[365743088,1749865839223,-500.0,0.00022466,2]
[365743089,1749865839233,-500.0,0.00022466,2]
[365743090,1749865839242,-500.0,0.00022466,2]
[365743091,1749865839252,-500.0,0.00022466,2]
[365743092,1749865839262,-500.0,0.00022466,2]
[365743093,1749865839272,-500.0,0.00022466,2]
[365743094,1749865839282,-500.0,0.00022466,2]
[365743095,1749865839291,-500.0,0.00022466,2]
[365743096,1749865839300,-270.83463435,0.00022466,2]
[365743097,1749865839317,-229.16536565,0.00022466,2]
[365743098,1749865839327,-500.0,0.00022466,2]
[365743099,1749865839336,-500.0,0.00022466,2]
[365743100,1749865839345,-500.0,0.00022466,2]
[365743101,1749865839355,-500.0,0.00022466,2]
[365743102,1749865839364,-500.0,0.00022466,2]
[365743103,1749865839374,-500.0,0.00022466,2]
[365743104,1749865839384,-500.0,0.00022466,2]
[365743105,1749865839393,-500.0,0.00022466,2]
[365743106,1749865839402,-500.0,0.00022466,2]
[365743107,1749865839411,-500.0,0.00022466,2]
[365743108,1749865839421,-500.0,0.00022466,2]
[365743109,1749865839430,-500.0,0.00022466,2]
[365743110,1749865839439,-500.0,0.00022466,2]
[365743111,1749865839448,-500.0,0.00022466,2]
[365743112,1749865839458,-500.0,0.00022466,2]
[365743113,1749865839467,-1000.49087508,0.00022475,2]
[365743114,1749865839476,-153.0,0.00022493,2]
[365743115,1749865839486,-176.7177958,0.00022493,2]
[365743116,1749865839495,-153.0,0.00022493,2]
[365743117,1749865839504,-158.6651865,0.00022493,2]
[365743118,1749865839513,-153.0,0.00022493,2]
[365743119,1749865839523,-573.046318,0.00022493,2]
[365743120,1749865839532,-153.0,0.00022493,2]
[365743121,1749865839542,-153.0,0.00022493,2]
[365743122,1749865839551,-153.0,0.00022493,2]
[365743123,1749865839560,-153.0,0.00022493,2]
[365743124,1749865839570,-309.5232587,0.00022493,2]
[365743125,1749865839579,-153.0,0.00022493,2]
[365743126,1749865839588,-156.5761506,0.00022493,2]
[365743127,1749865839598,-161.848385,0.00022505,2]
[365743128,1749865839608,-1589.35444136,0.00022521,7]
[365743129,1749865839618,-420.0,0.00022551,2]
[365743130,1749865839627,-701.53596062,0.00022596,2]
[365743131,1749865839644,-1385.35298009,0.00022602,2]
[365743132,1749865839656,-460.0,0.00022616,4]
[365743133,1749865839666,-4558.26,0.00022616,4]
[365743134,1749865839676,-990.59,0.00022616,4]
[365743135,1749865839686,-817.11,0.00022616,4]
[365743136,1749865839696,-460.0,0.00022616,4]
[365743137,1749865839705,-460.0,0.00022616,4]
[365743138,1749865839715,-444.79178926,0.00022616,4]
[365743139,1749865839725,-1302.14,0.00022616,4]
[365743140,1749865839735,-851.41,0.00022616,4]
[365743141,1749865839744,-460.0,0.00022616,4]
[365743142,1749865839754,-1092.88,0.00022616,4]
[365743143,1749865839763,-460.0,0.00022616,4]
[365743144,1749865839773,-460.0,0.00022616,4]
[365743145,1749865839783,-594.09,0.00022616,4]
[365743146,1749865839793,-460.0,0.00022616,4]
[365743147,1749865839803,-460.0,0.00022616,4]
[365743148,1749865839812,-477.01416206,0.00022617,4]
[365743149,1749865839822,-460.0,0.00022617,4]
[365743150,1749865839832,-460.0,0.00022617,4]
[365743151,1749865839842,-460.0,0.00022617,4]
[365743152,1749865839852,-460.0,0.00022617,4]
[365743153,1749865839863,-501.18,0.00022617,4]
[365743154,1749865839872,-460.0,0.00022617,4]
[365743155,1749865839883,-500.0,0.00022617,2]
[365743156,1749865839893,-1203.78,0.00022617,4]
[365743157,1749865839903,-460.0,0.00022617,4]
[365743158,1749865839913,-460.0,0.00022617,4]
[365743159,1749865839923,-460.0,0.00022617,4]
[365743160,1749865839932,-664.45,0.00022617,4]
[365743161,1749865839942,-460.0,0.00022617,4]
[365743162,1749865839952,-460.0,0.00022617,4]
[365743163,1749865839962,-460.0,0.00022617,4]
[365743164,1749865839971,-460.0,0.00022617,4]
[365743165,1749865839982,-460.0,0.00022617,4]
[365743166,1749865839992,-627.39,0.00022617,4]
[365743167,1749865840003,-460.0,0.00022617,4]
[365743168,1749865840013,-460.0,0.00022617,4]
[365743169,1749865840028,-751.22,0.00022617,4]
[365743170,1749865840037,-460.0,0.00022617,4]
[365743171,1749865840047,-500.0,0.00022617,3]
[365743172,1749865840056,-1575.81,0.00022617,4]
[365743173,1749865840067,-460.0,0.00022617,4]
[365743174,1749865840077,-547.07,0.00022617,4]
[365743175,1749865840086,-460.0,0.00022618,4]
[365743176,1749865840097,-460.0,0.00022618,4]
[365743177,1749865840107,-460.0,0.00022618,4]
[365743178,1749865840116,-460.0,0.00022618,4]
[365743179,1749865840125,-498.5,0.00022618,4]
[365743180,1749865840135,-460.0,0.00022618,4]
[365743181,1749865840144,-170.0,0.00022618,4]
[365743182,1749865840154,-588.82,0.00022618,2]
[365743183,1749865840163,-460.0,0.00022618,4]
[365743184,1749865840173,-160.0,0.00022619,2]
[365743185,1749865840182,-160.0,0.00022619,2]
[365743186,1749865840192,-1589.35444136,0.00022624,7]
[365743187,1749865840201,-160.0,0.00022642,3]
[365743188,1749865840212,-1589.35444136,0.00022728,7]
[365743189,1749865840222,-153.0,0.0002274,2]
[365743190,1749865840231,-502.2212127,0.00022748,2]
[365743191,1749865840240,-503.66896634,0.00022748,2]
[365743192,1749865840250,-1004.12027733,0.00022764,2]
[365743193,1749865840260,-18665.72432283,0.00022791,2]
[365743194,1749865840269,-1000.0,0.00022809,2]
[365743195,1749865840279,-1589.35444136,0.00022831,8]
[365743196,1749865840289,-5000.0,0.00022862,2]
[365743197,1749865840298,-16000.0,0.00022862,2]
[365743198,1749865840308,-329.04295496,0.00022875,2]
[365743199,1749865840317,-1000.0,0.00022875,2]
[365743200,1749865840327,-160.0,0.00022876,2]
[365743201,1749865840336,-424.32678023,0.00022876,2]
[365743202,1749865840345,-844.94977992,0.00022876,2]
[365743203,1749865840354,-160.0,0.00022876,2]
[365743204,1749865840364,-160.0,0.00022876,2]
[365743205,1749865840374,-229.78555783,0.00022883,2]
[365743206,1749865840384,-835.28007164,0.00022883,2]
[365743207,1749865840394,-213.24139183,0.00022883,2]
[365743208,1749865840404,-12531.02669373,0.00022883,2]
[365743209,1749865840414,-160.0,0.00022883,2]
[365743210,1749865840424,-160.0,0.00022883,2]
[365743211,1749865840434,-160.0,0.00022883,2]
[365743212,1749865840444,-460.0,0.0002289,4]
[365743213,1749865840454,-4558.26,0.0002289,4]
[365743214,1749865840464,-990.59,0.0002289,4]
[365743215,1749865840473,-817.11,0.0002289,4]
[365743216,1749865840483,-460.0,0.0002289,4]
[365743217,1749865840493,-460.0,0.0002289,4]
[365743218,1749865840503,-1302.14,0.0002289,4]
[365743219,1749865840512,-851.41,0.0002289,4]
[365743221,1749865840523,-460.0,0.0002289,4]
[365743223,1749865840532,-1092.88,0.0002289,4]
[365743225,1749865840542,-460.0,0.0002289,4]
[365743227,1749865840551,-460.0,0.0002289,4]
[365743229,1749865840561,-594.09,0.0002289,4]
[365743231,1749865840571,-584.60861864,0.0002289,4]
[365743233,1749865840580,-460.0,0.0002289,4]
[365743234,1749865840589,-330.0,0.00022891,4]
[365743235,1749865840598,-460.0,0.00022891,4]
[365743236,1749865840607,-474.33329405,0.00022891,4]
[365743237,1749865840616,-460.0,0.00022891,4]
[365743238,1749865840626,-501.18,0.00022891,4]
[365743239,1749865840635,-460.0,0.00022891,4]
[365743240,1749865840645,-1203.78,0.00022891,4]
[365743241,1749865840655,-349.65993925,0.00022891,4]
[365743242,1749865840665,-460.0,0.00022891,4]
[365743243,1749865840787,-460.0,0.00022891,4]
[365743244,1749865840797,-664.45,0.00022891,4]
[365743245,1749865840806,-460.0,0.00022891,4]
[365743246,1749865840817,-460.0,0.00022891,4]
[365743247,1749865840827,-152.49284995,0.00022891,4]
[365743248,1749865840836,-460.0,0.00022891,4]
[365743249,1749865840846,-460.0,0.00022891,4]
[365743250,1749865840857,-627.39,0.00022891,4]
[365743251,1749865840866,-460.0,0.00022891,4]
[365743252,1749865840875,-460.0,0.00022891,4]
[365743253,1749865840884,-751.22,0.00022891,4]
[365743254,1749865840894,-460.0,0.00022891,4]
[365743255,1749865840903,-1575.81,0.00022891,4]
[365743256,1749865840913,-460.0,0.00022891,4]
[365743257,1749865840923,-547.07,0.00022891,4]
[365743258,1749865840933,-460.0,0.00022892,4]
[365743259,1749865840942,-299.26558907,0.00022892,4]
[365743260,1749865840952,-420.0,0.00022892,4]
[365743261,1749865840961,-448.5991479,0.00022892,4]
[365743262,1749865840971,-498.5,0.00022892,4]
[365743263,1749865840980,-460.0,0.00022892,4]
[365743264,1749865840990,-588.82,0.00022892,2]
[365743265,1749865840999,-460.0,0.00022892,4]
[365743266,1749865841009,-1130.02,0.000229,7]
[365743267,1749865841020,-1589.35444136,0.00022934,8]
[365743268,1749865841029,-1385.35298009,0.00022961,2]
[365743269,1749865841039,-500.0,0.00022973,2]
[365743270,1749865841048,-500.0,0.00022973,2]
[365743271,1749865841059,-505.64092817,0.00022973,2]
[365743272,1749865841069,-25702.65375941,0.00022999,2]
[365743273,1749865841079,-46343.32379861,0.00022999,2]
[365743274,1749865841089,-56774.39843055,0.00023,20]
[365743275,1749865841101,-3028.05637756,0.00023,2]
[365743276,1749865841112,-1329.14596564,0.00023,2]
[365743277,1749865841123,-85507.04,0.00023,7]
[365743278,1749865841132,-5912.13539971,0.00023,7]
[365743279,1749865841141,-160.0,0.00023,7]
[365743280,1749865841151,-12531.02669373,0.00023,7]
[365743281,1749865841161,-1589.35444136,0.00023038,8]
[365743282,1749865841172,-701.53596062,0.00023047,2]
[365743283,1749865841182,-153.0,0.00023102,2]
[365743284,1749865841192,-153.0,0.00023102,2]
[365743285,1749865841202,-153.0,0.00023102,2]
[365743286,1749865841212,-153.0,0.00023102,2]
[365743287,1749865841221,-153.0,0.00023102,2]
[365743288,1749865841231,-153.0,0.00023102,2]
[365743289,1749865841240,-1589.35444136,0.00023141,8]
[365743290,1749865841249,-153.0,0.00023151,2]
[365743291,1749865841260,-153.0,0.00023151,2]
[365743292,1749865841270,-153.0,0.00023151,2]
[365743293,1749865841280,-153.0,0.00023151,2]
[365743294,1749865841288,-460.0,0.00023164,4]
[365743295,1749865841297,-4558.26,0.00023164,4]
[365743296,1749865841307,-990.59,0.00023164,4]
[365743297,1749865841316,-817.11,0.00023164,4]
[365743298,1749865841326,-460.0,0.00023164,4]
[365743299,1749865841336,-489.21226209,0.00023164,4]
[365743300,1749865841347,-1302.14,0.00023164,4]
[365743301,1749865841357,-851.41,0.00023164,4]
[365743302,1749865841366,-460.0,0.00023164,4]
[365743303,1749865841376,-1092.88,0.00023164,4]
[365743304,1749865841386,-460.0,0.00023164,4]
[365743305,1749865841396,-460.0,0.00023164,4]
[365743306,1749865841405,-594.09,0.00023164,4]
[365743307,1749865841414,-460.0,0.00023164,4]
[365743308,1749865841424,-460.0,0.00023165,4]
[365743309,1749865841433,-460.0,0.00023165,4]
[365743310,1749865841442,-501.18,0.00023165,4]
[365743311,1749865841451,-460.0,0.00023165,4]
[365743312,1749865841460,-500.0,0.00023165,2]
[365743313,1749865841470,-1203.78,0.00023165,4]
[365743314,1749865841479,-460.0,0.00023165,4]
[365743315,1749865841488,-460.0,0.00023165,4]
[365743316,1749865841498,-664.45,0.00023165,4]
[365743317,1749865841507,-460.0,0.00023165,4]
[365743318,1749865841517,-460.0,0.00023165,4]
[365743319,1749865841527,-460.0,0.00023165,4]
[365743320,1749865841536,-460.0,0.00023165,4]
[365743321,1749865841546,-627.39,0.00023165,4]
[365743322,1749865841555,-460.0,0.00023165,4]
[365743323,1749865841563,-460.0,0.00023165,4]
[365743324,1749865841573,-751.22,0.00023165,4]
[365743325,1749865841582,-460.0,0.00023165,4]
[365743326,1749865841593,-507.470537,0.00023165,4]
[365743327,1749865841602,-1575.81,0.00023165,4]
[365743328,1749865841611,-460.0,0.00023165,4]
[365743329,1749865841621,-547.07,0.00023165,4]
[365743330,1749865841632,-460.0,0.00023166,4]
[365743331,1749865841648,-498.5,0.00023166,4]
[365743332,1749865841663,-460.0,0.00023166,4]
[365743333,1749865841676,-588.82,0.00023166,2]
[365743334,1749865841687,-460.0,0.00023166,4]
[365743335,1749865841701,-1589.35444136,0.00023245,8]
[365743336,1749865841714,-306.7585254,0.0002326,2]
[365743337,1749865841728,-160.0,0.00023269,2]
[365743338,1749865841741,-1385.35298009,0.00023321,2]
[365743339,1749865841755,-1795.953565,0.00023324,3]
[365743340,1749865841772,-1589.35444136,0.00023348,9]
[365743341,1749865841784,-8963.86335517,0.0002335,2]
[365743342,1749865841797,-1005.4288561,0.00023357,2]
[365743343,1749865841809,-507.0,0.00023371,2]
[365743344,1749865841823,-160.0,0.000234,4]
[365743345,1749865841836,-161.10336283,0.000234,5]
[365743346,1749865841849,-192.0,0.000234,2]
[365743347,1749865841860,-5000.0,0.0002341,2]
[365743348,1749865841873,-1500.0,0.00023423,2]
[365743349,1749865841886,-460.0,0.00023438,4]
[365743350,1749865841899,-4558.26,0.00023438,4]
[365743351,1749865841913,-990.59,0.00023438,4]
[365743352,1749865841927,-817.11,0.00023438,4]
[365743353,1749865841942,-184.03333263,0.00023438,4]
[365743354,1749865841957,-1302.14,0.00023438,4]
[365743355,1749865841968,-851.41,0.00023438,4]
[365743356,1749865841979,-460.0,0.00023438,4]
[365743357,1749865841990,-1092.88,0.00023438,4]
[365743358,1749865842005,-460.0,0.00023438,4]
[365743359,1749865842020,-460.0,0.00023438,4]
[365743360,1749865842032,-594.09,0.00023438,4]
[365743361,1749865842044,-460.0,0.00023438,4]
[365743362,1749865842056,-460.0,0.00023439,4]
[365743363,1749865842069,-460.0,0.00023439,4]
[365743364,1749865842079,-501.18,0.00023439,4]
[365743365,1749865842090,-460.0,0.00023439,4]
[365743366,1749865842103,-1203.78,0.00023439,4]
[365743367,1749865842114,-460.0,0.00023439,4]
[365743368,1749865842126,-460.0,0.00023439,4]
[365743369,1749865842138,-664.45,0.00023439,4]
[365743370,1749865842150,-460.0,0.00023439,4]
[365743371,1749865842162,-369.88593028,0.00023439,4]
[365743372,1749865842174,-460.0,0.00023439,4]
[365743373,1749865842186,-627.39,0.00023439,4]
[365743374,1749865842197,-460.0,0.00023439,4]
[365743375,1749865842209,-460.0,0.00023439,4]
[365743376,1749865842221,-460.0,0.00023439,4]
[365743377,1749865842232,-751.22,0.00023439,4]
[365743378,1749865842244,-460.0,0.00023439,4]
[365743379,1749865842255,-1575.81,0.00023439,4]
[365743380,1749865842268,-460.0,0.00023439,4]
[365743381,1749865842279,-547.07,0.00023439,4]
[365743382,1749865842292,-460.0,0.0002344,4]
[365743383,1749865842304,-498.5,0.0002344,4]
[365743384,1749865842316,-460.0,0.0002344,4]
[365743385,1749865842328,-588.82,0.0002344,2]
[365743386,1749865842339,-460.0,0.0002344,4]
[365743387,1749865842351,-1589.35444136,0.00023452,9]
[365743388,1749865842363,-153.0,0.00023452,2]
[365743389,1749865842374,-153.0,0.00023452,2]
[365743390,1749865842386,-153.0,0.00023452,2]
[365743391,1749865842398,-966.355,0.00023484,2]
[365743392,1749865842410,-653.0,0.00023484,2]
[365743393,1749865842422,-2160.0,0.00023484,2]
[365743394,1749865842433,-152.636,0.00023484,2]
[365743395,1749865842444,-197.066,0.00023484,2]
[365743396,1749865842455,-242.262,0.00023484,2]
[365743397,1749865842467,-405.0,0.00023484,2]
[365743398,1749865842478,-405.0,0.00023484,2]
[365743399,1749865842490,-150.0,0.00023484,2]
[365743400,1749865842502,-701.53596062,0.00023498,2]
[365743401,1749865842514,-502.83161362,0.00023521,2]
[365743402,1749865842527,-1000.0,0.00023521,2]
[365743403,1749865842536,-3386.47,0.00023549,2]
[365743404,1749865842547,-1589.35444136,0.00023555,9]
[365743405,1749865842556,-200.0,0.00023561,4]
[365743406,1749865842566,-152.3970261,0.00023561,4]
[365743407,1749865842576,-200.0,0.00023571,2]
[365743408,1749865842585,-844.94977992,0.0002358,3]
[365743409,1749865842595,-160.0,0.0002358,3]
[365743410,1749865842605,-160.0,0.0002358,3]
[365743411,1749865842614,-424.32678023,0.0002358,3]
[365743412,1749865842625,-229.78555783,0.0002358,3]
[365743413,1749865842634,-160.0,0.0002358,3]
[365743414,1749865842644,-160.0,0.0002358,3]
[365743415,1749865842655,-12531.02669373,0.0002358,3]
[365743416,1749865842815,-160.0,0.0002358,3]
[365743417,1749865842825,-200.0,0.00023586,2]
[365743418,1749865842835,-215.0738,0.00023589,2]
[365743419,1749865842845,-176.00323304,0.00023589,2]
[365743420,1749865842855,-200.0,0.00023591,2]
[365743421,1749865842864,-49266.063792,0.000236,2]
[365743422,1749865842874,-151.0,0.000236,10]
[365743423,1749865842884,-151.0,0.000236,7]
[365743424,1749865842893,-151.0,0.000236,7]
[365743425,1749865842903,-151.0,0.000236,7]
[365743426,1749865842913,-153.451976,0.000236,7]
[365743427,1749865842923,-835.28007164,0.000236,3]
[365743428,1749865842932,-152.269186,0.000236,7]
[365743429,1749865842942,-160.0,0.000236,3]
[365743430,1749865842951,-151.0,0.000236,7]
[365743431,1749865842961,-151.0,0.000236,7]
[365743432,1749865842971,-639.0,0.000236,2]
[365743433,1749865842980,-151.0,0.000236,7]
[365743434,1749865842991,-174.219636,0.000236,7]
[365743435,1749865843000,-152.520026,0.000236,7]
[365743436,1749865843011,-151.0,0.000236,7]
[365743437,1749865843023,-151.0,0.000236,7]
[365743438,1749865843033,-151.0,0.000236,7]
[365743439,1749865843042,-151.0,0.000236,7]
[365743440,1749865843052,-151.0,0.000236,7]
[365743441,1749865843062,-364.640798,0.000236,7]
[365743442,1749865843074,-1589.35444136,0.00023659,9]
[365743443,1749865843084,-192.0,0.00023679,2]
[365743444,1749865843094,-164.24010783,0.0002368,4]
[365743445,1749865843104,-164.24010783,0.0002368,4]
[365743446,1749865843114,-164.24010783,0.0002368,4]
[365743447,1749865843123,-164.24010783,0.0002368,4]
[365743448,1749865843132,-164.24,0.0002368,4]
[365743449,1749865843142,-159.67788261,0.0002368,4]
[365743450,1749865843151,-159.67788261,0.0002368,4]
[365743451,1749865843160,-159.67788261,0.0002368,4]
[365743452,1749865843170,-159.67788261,0.0002368,4]
[365743453,1749865843179,-159.67788261,0.0002368,4]
[365743454,1749865843189,-159.67788261,0.0002368,4]
[365743455,1749865843198,-159.67788261,0.0002368,4]
[365743456,1749865843208,-159.67788261,0.0002368,4]
[365743457,1749865843217,-159.67788261,0.0002368,4]
[365743458,1749865843227,-159.67788261,0.0002368,4]
[365743460,1749865843236,-159.67788261,0.0002368,4]
[365743461,1749865843246,-161.069961,0.0002368,7]
[365743463,1749865843255,-151.0,0.0002368,7]
[365743464,1749865843264,-151.0,0.0002368,7]
[365743465,1749865843274,-151.0,0.0002368,7]
[365743466,1749865843293,-1385.35298009,0.0002368,2]
[365743467,1749865843303,-1090.58,0.00023687,3]
[365743468,1749865843313,-545.28,0.00023687,3]
[365743469,1749865843323,-420.0,0.00023687,2]
[365743471,1749865843334,-2181.16,0.00023688,3]
[365743472,1749865843343,-151.0,0.00023688,7]
[365743474,1749865843353,-4362.32,0.00023689,3]
[365743476,1749865843364,-159.67,0.0002369,4]
[365743478,1749865843374,-151.0,0.000237,9]
[365743480,1749865843384,-151.0,0.000237,9]
[365743482,1749865843393,-151.0,0.000237,10]
[365743484,1749865843403,-151.0,0.000237,9]
[365743485,1749865843413,-151.0,0.000237,8]
[365743487,1749865843423,-151.0,0.000237,9]
[365743489,1749865843432,-1766.84513343,0.000237,2]
[365743491,1749865843442,-460.0,0.00023712,4]
[365743493,1749865843452,-4558.26,0.00023712,4]
[365743495,1749865843462,-990.59,0.00023712,4]
[365743497,1749865843471,-817.11,0.00023712,4]
[365743498,1749865843481,-1302.14,0.00023712,4]
[365743500,1749865843491,-851.41,0.00023712,4]
[365743502,1749865843500,-460.0,0.00023712,4]
[365743504,1749865843510,-1092.88,0.00023712,4]
[365743506,1749865843520,-460.0,0.00023712,4]
[365743508,1749865843530,-460.0,0.00023712,4]
[365743510,1749865843540,-594.09,0.00023712,4]
[365743511,1749865843549,-460.0,0.00023712,4]
[365743513,1749865843558,-460.0,0.00023713,4]
[365743515,1749865843568,-460.0,0.00023713,4]
[365743517,1749865843577,-501.18,0.00023713,4]
[365743519,1749865843587,-280.0,0.00023713,4]
[365743521,1749865843596,-500.0,0.00023713,2]
[365743523,1749865843605,-1203.78,0.00023713,4]
[365743525,1749865843615,-460.0,0.00023713,4]
[365743526,1749865843624,-460.0,0.00023713,4]
[365743528,1749865843634,-664.45,0.00023713,4]
[365743530,1749865843643,-460.0,0.00023713,4]
[365743532,1749865843653,-460.0,0.00023713,4]
[365743534,1749865843662,-627.39,0.00023713,4]
[365743536,1749865843672,-460.0,0.00023713,4]
[365743537,1749865843682,-460.0,0.00023713,4]
[365743539,1749865843692,-460.0,0.00023713,4]
[365743541,1749865843701,-751.22,0.00023713,4]
[365743543,1749865843710,-460.0,0.00023713,4]
[365743545,1749865843720,-1575.81,0.00023713,4]
[365743547,1749865843729,-460.0,0.00023713,4]
[365743548,1749865843739,-547.07,0.00023713,4]
[365743550,1749865843749,-151.0,0.00023714,7]
[365743552,1749865843758,-460.0,0.00023714,4]
[365743554,1749865843768,-151.0,0.00023714,7]
[365743556,1749865843777,-151.0,0.00023714,7]
[365743558,1749865843787,-154.239679,0.00023714,7]
[365743560,1749865843796,-151.0,0.00023714,7]
[365743561,1749865843805,-151.0,0.00023714,7]
[365743563,1749865843815,-498.5,0.00023714,4]
[365743565,1749865843824,-259.40460734,0.00023714,4]
[365743567,1749865843834,-588.82,0.00023714,2]
[365743569,1749865843843,-460.0,0.00023714,4]
[365743571,1749865843854,-1589.35444136,0.00023762,9]
[365743573,1749865843863,-514.33,0.00023773,2]
[365743575,1749865843872,-501.05540923,0.00023773,2]
[365743576,1749865843881,-500.0,0.00023773,2]
[365743578,1749865843890,-500.0,0.00023773,2]
[365743579,1749865843900,-500.0,0.00023773,2]
[365743581,1749865843909,-500.0,0.00023773,2]
[365743583,1749865843920,-501.18193787,0.00023773,2]
[365743585,1749865843930,-500.98830008,0.00023773,2]
[365743586,1749865843939,-500.0,0.00023773,2]
[365743588,1749865843948,-500.0,0.00023773,2]
[365743590,1749865843958,-500.0,0.00023773,2]
[365743592,1749865843968,-500.0,0.00023773,2]
[365743594,1749865843978,-600.0,0.00023773,2]
[365743595,1749865843987,-500.0,0.00023773,2]
[365743596,1749865843997,-504.81255339,0.00023773,2]
[365743597,1749865844007,-500.0,0.00023773,2]
[365743598,1749865844019,-501.41379653,0.00023773,2]
[365743599,1749865844030,-500.0,0.00023773,2]
[365743600,1749865844041,-500.14996127,0.00023773,2]
[365743601,1749865844051,-500.0,0.00023773,2]
[365743602,1749865844061,-502.24838688,0.00023773,2]
[365743603,1749865844071,-15157.93772815,0.0002378,7]
[365743604,1749865844081,-286148.56015,0.0002378,5]
[365743620,1749866402633,1073.0,0.00024943,60]
[365743621,1749866483155,684.10934071,0.00024946,60]
[365743622,1749866545862,165.89312,0.00024946,120]
[365743623,1749866578860,1929439.0,0.00024658,120]
[365743626,1749866689082,161.944292,0.00013699,2]
[365743628,1749866839147,-5000.0,0.0002056,2]
[365743629,1749866839168,-195.7999762,0.00020667,2]
[365743630,1749866839189,-300.0,0.00020767,2]
[365743631,1749866839210,-300.0,0.00020767,2]
[365743632,1749866839229,-300.0,0.00020768,2]
[365743633,1749866839250,-162.34943672,0.00020768,2]
[365743634,1749866839280,-137.65056328,0.00020768,2]
[365743635,1749866839300,-300.0,0.00020768,2]
[365743636,1749866839322,-1200.0,0.00020768,2]
[365743637,1749866839343,-398.6104383,0.00020769,2]
[365743638,1749866849077,-5000.0,0.00020562,2]
[365743639,1749866849098,-61.7138269,0.00020769,2]
[365743640,1749866849118,-500.0,0.00020769,2]
[365743641,1749866849140,-142.51210747,0.00020769,2]
[365743645,1749866955092,-435.96217067,0.00020562,2]